bitfinex-derivatives/quotes_BTCF0:USTF0_20250207
["timestamp","ask_amount","ask_price","bid_price","bid_amount"]
[1738910931840,0.02066,96818.0,96817.0,0.30109587]
[1738910932239,0.02066,96818.0,96817.0,0.30009587]
[1738910932438,0.02066,96818.0,96817.0,0.24857587]
[1738910932638,0.02066,96818.0,96817.0,0.30001587]
[1738910933333,0.02066,96818.0,96817.0,0.001]
[1738910933546,1.05598446,96818.0,96817.0,0.001]
[1738910933840,0.38146,96818.0,96817.0,0.002]
[1738910934240,0.38146,96818.0,96816.0,0.2065242]
[1738910934447,0.38146,96818.0,96817.0,0.001]
[1738910934840,0.38146,96818.0,96816.0,0.2065242]
[1738910935041,0.38146,96818.0,96817.0,0.001]
[1738910935438,0.38146,96818.0,96816.0,0.2065242]
[1738910935638,0.38146,96818.0,96817.0,0.001]
[1738910937842,0.38146,96818.0,96816.0,0.2075242]
[1738910938254,0.38146,96818.0,96816.0,0.2065242]
[1738910938441,0.38146,96818.0,96817.0,0.001]
[1738910938833,0.38146,96818.0,96816.0,0.2065242]
[1738910939043,0.38146,96818.0,96816.0,0.2075242]
[1738910939434,0.38146,96818.0,96816.0,0.2065242]
[1738910939737,0.38146,96818.0,96817.0,0.001]
[1738910940351,0.38146,96818.0,96817.0,0.18669448]
[1738910941642,0.38146,96818.0,96817.0,0.18569448]
[1738910942450,0.02066,96818.0,96817.0,0.18669448]
[1738910943351,0.02166,96818.0,96817.0,0.18669448]
[1738910943846,0.02166,96818.0,96817.0,0.001]
[1738910944047,0.02266,96818.0,96817.0,0.001]
[1738910944345,0.2221,96835.0,96817.0,0.001]
[1738910944551,0.51518407,96836.0,96834.0,0.2064869]
[1738910944852,0.53460406,96836.0,96831.0,0.05104]
[1738910946042,0.2064899,96833.0,96825.0,0.00015496]
[1738910946250,0.3608,96826.0,96825.0,0.00015496]
[1738910946444,0.82880346,96826.0,96825.0,0.00015496]
[1738910946650,0.84946346,96826.0,96825.0,0.00015496]
[1738910947052,1.07156346,96826.0,96825.0,0.00015496]
[1738910947352,0.206521,96818.0,96817.0,0.001]
[1738910947553,0.567321,96818.0,96817.0,0.001]
[1738910947855,0.587981,96818.0,96811.0,0.30839045]
[1738910948444,0.3608,96816.0,96811.0,0.30839045]
[1738910948650,0.82880346,96816.0,96811.0,0.30839045]
[1738910949055,0.84946346,96816.0,96811.0,0.30839045]
[1738910949558,0.84946346,96816.0,96811.0,0.31039045]
[1738910949753,0.38146,96816.0,96811.0,0.31039045]
[1738910951354,0.38146,96816.0,96811.0,0.002]
[1738910952454,0.38346,96816.0,96815.0,0.2065274]
[1738910954059,0.38246,96816.0,96815.0,0.2065274]
[1738910954552,0.38246,96816.0,96815.0,0.21502997]
[1738910955651,0.38246,96816.0,96815.0,0.00850257]
[1738910955858,0.38246,96816.0,96808.0,0.2065405]
[1738910956050,0.38246,96816.0,96806.0,0.15632953]
[1738910956256,0.38246,96816.0,96814.0,0.2065276]
[1738910956450,0.38246,96816.0,96815.0,0.2592]
[1738910957251,0.02066,96816.0,96815.0,0.2592]
[1738910957558,0.02166,96816.0,96815.0,0.2592]
[1738910958557,0.02066,96816.0,96815.0,0.2612]
[1738910958952,0.02066,96816.0,96815.0,0.2592]
[1738910959162,0.02066,96816.0,96815.0,0.2612]
[1738910959665,0.3608,96823.0,96815.0,0.2612]
[1738910959867,0.38146,96823.0,96815.0,0.2612]
[1738910961283,0.38146,96823.0,96822.0,0.2065125]
[1738910961483,0.38146,96823.0,96822.0,0.2576325]
[1738910963873,0.02166,96823.0,96822.0,0.2576325]
[1738910965885,0.02166,96823.0,96822.0,0.26641977]
[1738910967583,0.2221,96839.0,96822.0,0.05990727]
[1738910967887,0.4285778,96839.0,96823.0,0.2065091]
[1738910968079,0.38146,96831.0,96823.0,0.2065091]
[1738910969288,0.38246,96831.0,96823.0,0.2065091]
[1738910969787,0.38246,96831.0,96822.0,0.05978727]
[1738910969984,0.3608,96823.0,96822.0,0.051]
[1738910970172,0.3608,96823.0,96821.0,0.18554427]
[1738910970374,0.38146,96823.0,96821.0,0.19407243]
[1738910972576,0.38146,96823.0,96821.0,0.00852816]
[1738910972775,0.38146,96823.0,96817.0,0.2065218]
[1738910973681,0.38146,96823.0,96820.0,0.2065164]
[1738910974482,0.38246,96823.0,96820.0,0.2065164]
[1738910974875,0.38146,96823.0,96820.0,0.2065164]
[1738910975076,0.2065302,96814.0,96812.0,0.18554427]
[1738910975283,0.3608,96813.0,96812.0,0.18554427]
[1738910975686,0.38146,96813.0,96812.0,0.18554427]
[1738910978491,0.38146,96813.0,96811.0,0.2065344]
[1738910983490,0.31793843,96821.0,96820.0,0.2065168]
[1738910983684,0.2221,96823.0,96813.0,0.14771281]
[1738910983885,0.24276,96823.0,96822.0,0.2065125]
[1738910984384,0.02066,96823.0,96822.0,0.2065125]
[1738910985487,0.02166,96823.0,96822.0,0.2065125]
[1738910986501,0.02066,96823.0,96822.0,0.2085125]
[1738910987397,0.02066,96823.0,96822.0,0.002]
[1738910987898,0.02066,96823.0,96820.0,0.0839]
[1738910988101,0.02066,96823.0,96822.0,0.001]
[1738910989100,0.02066,96823.0,96820.0,0.0839]
[1738910990294,0.02066,96823.0,96821.0,0.2065146]
[1738910991096,0.02066,96823.0,96822.0,0.0848]
[1738910991296,0.02066,96823.0,96822.0,0.0858]
[1738910992004,0.02066,96823.0,96822.0,0.0848]
[1738910992594,0.02066,96823.0,96822.0,0.0858]
[1738910992801,0.34777996,96824.0,96823.0,0.2065104]
[1738910993303,0.36843996,96824.0,96823.0,0.2065104]
[1738910994194,0.02066,96824.0,96823.0,0.2065104]
[1738910994398,0.02066,96824.0,96823.0,0.2570704]
[1738910994603,0.02066,96824.0,96823.0,0.05056]
[1738910995602,0.02066,96824.0,96823.0,0.05156]
[1738910998111,0.02066,96824.0,96823.0,0.0606526]
[1738910998405,0.02066,96824.0,96823.0,0.0596526]
[1738910998604,0.02066,96824.0,96823.0,0.0606526]
[1738910998997,0.02066,96824.0,96823.0,0.0596526]
[1738910999206,0.02066,96824.0,96823.0,0.0606526]
[1738911000502,0.3608,96832.0,96823.0,0.0606526]
[1738911000503,0.34479739,96832.0,96831.0,0.206473]
[1738911000898,0.3608,96843.0,96834.0,0.1858048]
[1738911001204,0.3608,96843.0,96841.0,0.20645]
[1738911001405,0.38146,96843.0,96842.0,0.2474]
[1738911002798,0.38146,96843.0,96842.0,0.001]
[1738911003006,0.5879075,96843.0,96842.0,0.001]
[1738911003207,0.6706075,96843.0,96842.0,0.001]
[1738911003609,0.6726075,96843.0,96842.0,0.001]
[1738911004602,0.6706075,96843.0,96842.0,0.001]
[1738911004900,0.6726075,96843.0,96842.0,0.001]
[1738911005806,0.6726075,96843.0,96838.0,0.009151]
[1738911006012,0.6726075,96843.0,96842.0,0.001]
[1738911006711,0.5899075,96843.0,96842.0,0.001]
[1738911007911,0.2064511,96842.0,96838.0,0.001]
[1738911008097,0.2271111,96842.0,96838.0,0.001]
[1738911008298,0.02066,96842.0,96838.0,0.001]
[1738911008503,0.02066,96842.0,96841.0,0.2064517]
[1738911010109,0.02266,96842.0,96841.0,0.2064517]
[1738911010508,0.02066,96842.0,96841.0,0.2064517]
[1738911010710,0.02266,96842.0,96841.0,0.2064517]
[1738911011314,0.02266,96842.0,96841.0,0.2074517]
[1738911011701,0.02266,96842.0,96841.0,0.21636966]
[1738911012107,0.38346,96842.0,96841.0,0.001]
[1738911017514,0.38346,96842.0,96841.0,0.2074517]
[1738911021818,0.02266,96842.0,96841.0,0.2443517]
[1738911022020,0.3608,96859.0,96855.0,0.2064211]
[1738911022208,0.3608,96859.0,96856.0,0.1714]
[1738911022413,0.17379406,96857.0,96856.0,0.1714]
[1738911023108,0.17579406,96857.0,96856.0,0.2083]
[1738911024822,0.17579406,96857.0,96856.0,0.2093]
[1738911025019,0.17579406,96857.0,96856.0,0.21824701]
[1738911025916,0.17579406,96857.0,96856.0,0.21724701]
[1738911026121,0.17579406,96857.0,96856.0,0.21824701]
[1738911026317,0.17379406,96857.0,96856.0,0.21824701]
[1738911026523,0.02065,96857.0,96856.0,0.21824701]
[1738911031231,0.02065,96857.0,96856.0,0.21724701]
[1738911031623,0.02065,96857.0,96856.0,0.26780701]
[1738911032238,0.02065,96857.0,96856.0,0.21724701]
[1738911032424,0.02065,96857.0,96856.0,0.26780701]
[1738911033731,0.02065,96857.0,96856.0,0.21724701]
[1738911033933,0.02065,96857.0,96856.0,0.04584701]
[1738911034824,0.02065,96857.0,96856.0,0.0369]
[1738911038038,0.02065,96857.0,96856.0,0.1229]
[1738911043740,0.3608,96879.0,96864.0,0.2064007]
[1738911043942,0.3608,96879.0,96869.0,0.14771281]
[1738911044131,0.38145,96879.0,96870.0,0.04798]
[1738911044331,0.38145,96879.0,96870.0,0.03765]
[1738911044533,0.3608,96879.0,96870.0,0.03765]
[1738911044943,0.38145,96879.0,96870.0,0.03765]
[1738911045543,0.38245,96879.0,96870.0,0.03765]
[1738911045934,0.38145,96879.0,96870.0,0.03765]
[1738911046131,0.38245,96879.0,96870.0,0.03765]
[1738911047052,0.38145,96879.0,96870.0,0.03765]
[1738911047235,0.38245,96879.0,96878.0,0.2063728]
[1738911048146,0.02165,96879.0,96878.0,0.2063728]
[1738911049248,0.02165,96879.0,96878.0,0.25240398]
[1738911049447,0.02165,96879.0,96878.0,0.25340398]
[1738911056251,0.02065,96879.0,96878.0,0.25340398]
[1738911056452,0.02165,96879.0,96878.0,0.25340398]
[1738911057548,0.02165,96879.0,96878.0,0.25240398]
[1738911058045,0.3049,96898.0,96896.0,0.2063345]
[1738911058443,0.2221,96898.0,96896.0,0.2063345]
[1738911058750,0.24275,96898.0,96896.0,0.2063345]
[1738911059552,0.24375,96898.0,96896.0,0.2063345]
[1738911060550,0.02165,96898.0,96897.0,0.0369]
[1738911061641,0.02165,96898.0,96897.0,0.0379]
[1738911062356,0.02165,96898.0,96897.0,0.0369]
[1738911062957,0.02065,96898.0,96897.0,0.0369]
[1738911065349,0.02065,96898.0,96897.0,0.04606844]
[1738911065548,1e-08,96898.0,96897.0,0.04606844]
[1738911066152,1e-08,96898.0,96897.0,0.12856844]
[1738911066153,0.02064001,96898.0,96897.0,0.12856844]
[1738911066460,0.02064001,96898.0,96897.0,0.14469622]
[1738911066694,0.58414001,96909.0,96898.0,0.2063303]
[1738911066858,0.58414001,96909.0,96898.0,0.22245808]
[1738911067055,0.02218876,96899.0,96898.0,0.22245808]
[1738911067355,0.58414001,96909.0,96898.0,0.05302778]
[1738911067356,0.00124001,96909.0,96898.0,0.05302778]
[1738911067563,0.3608,96919.0,96910.0,0.2063033]
[1738911067760,0.3608,96919.0,96911.0,0.09244863]
[1738911067967,0.38144,96919.0,96912.0,0.04192863]
[1738911068259,0.38144,96919.0,96913.0,0.01612778]
[1738911068449,0.38144,96919.0,96914.0,0.04192718]
[1738911068646,0.38144,96919.0,96915.0,0.04192718]
[1738911068855,0.38144,96919.0,96912.0,0.2062993]
[1738911068856,0.38144,96919.0,96916.0,0.01612778]
[1738911069063,0.38144,96919.0,96917.0,0.01612778]
[1738911069265,0.38144,96919.0,96918.0,0.01612778]
[1738911069453,0.38144,96919.0,96918.0,0.05302778]
[1738911070359,0.38144,96919.0,96918.0,0.0369]
[1738911070658,0.38144,96919.0,96918.0,0.05302596]
[1738911071458,0.38144,96919.0,96918.0,0.0369]
[1738911072365,0.38144,96919.0,96918.0,0.0379]
[1738911072862,0.60354,96919.0,96918.0,0.0379]
[1738911073359,0.61259757,96919.0,96918.0,0.0379]
[1738911073767,0.61259757,96919.0,96893.0,0.30839045]
[1738911074066,0.9279239,96901.0,96893.0,0.30839045]
[1738911074366,1.40621783,96901.0,96893.0,0.30839045]
[1738911074766,1.42685783,96901.0,96893.0,0.30839045]
[1738911074968,1.42685783,96901.0,96900.0,0.24845748]
[1738911075861,1.42685783,96901.0,96900.0,0.001]
[1738911077072,1.43085783,96901.0,96900.0,0.001]
[1738911077456,1.52453393,96901.0,96891.0,0.00015479]
[1738911077658,0.3608,96892.0,96882.0,0.24745748]
[1738911077863,0.3608,96883.0,96882.0,0.24745748]
[1738911078567,0.38144,96883.0,96882.0,0.45382178]
[1738911079153,0.38144,96883.0,96882.0,0.45682178]
[1738911079565,0.38144,96883.0,96882.0,0.2063643]
[1738911079768,0.38144,96883.0,96882.0,0.2093643]
[1738911080165,0.38144,96883.0,96882.0,0.2103643]
[1738911080367,0.38144,96883.0,96882.0,0.004]
[1738911080664,0.68144,96883.0,96873.0,0.00015479]
[1738911080969,0.68144,96883.0,96859.0,0.00912707]
[1738911080970,0.2063976,96867.0,96859.0,0.00912707]
[1738911081269,0.3608,96866.0,96859.0,0.00912707]
[1738911081470,0.3608,96866.0,96859.0,0.21553907]
[1738911081775,0.3608,96866.0,96861.0,0.206409]
[1738911081962,0.3608,96866.0,96864.0,0.2064013]
[1738911081963,0.38144,96866.0,96864.0,0.2064013]
[1738911083459,0.38444,96866.0,96864.0,0.2064013]
[1738911085166,0.02364,96866.0,96864.0,0.2064013]
[1738911086565,0.02264,96866.0,96864.0,0.2094013]
[1738911087363,0.02064,96866.0,96864.0,0.2114013]
[1738911088172,0.02064,96866.0,96864.0,0.2084013]
[1738911088364,0.02064,96866.0,96864.0,0.2124013]
[1738911088870,0.02064,96866.0,96864.0,0.006]
[1738911089257,0.02064,96866.0,96864.0,0.004]
[1738911089462,0.02064,96866.0,96864.0,0.006]
[1738911089862,0.02064,96866.0,96864.0,0.002]
[1738911090069,0.5878396,96866.0,96864.0,0.004]
[1738911090269,0.5878396,96866.0,96864.0,0.006]
[1738911090968,0.5878396,96866.0,96864.0,0.004]
[1738911091367,0.38144,96866.0,96864.0,0.004]
[1738911091671,0.38144,96866.0,96864.0,0.2094007]
[1738911092264,0.38144,96866.0,96864.0,0.2064007]
[1738911092465,0.38144,96866.0,96864.0,0.2074007]
[1738911092666,0.38344,96866.0,96864.0,0.2074007]
[1738911092861,0.38344,96866.0,96865.0,0.01613262]
[1738911093367,0.02064,96866.0,96865.0,0.01613262]
[1738911094480,0.00015479,96875.0,96865.0,0.06665262]
[1738911094777,0.3608,96872.0,96866.0,0.01613262]
[1738911094976,0.2063941,96869.0,96867.0,0.01613262]
[1738911095178,0.2063941,96869.0,96865.0,0.05452]
[1738911095364,0.2063941,96869.0,96865.0,0.05052]
[1738911095569,0.2270441,96869.0,96865.0,0.05252]
[1738911096070,0.2270441,96869.0,96867.0,0.002]
[1738911097371,0.2280441,96869.0,96867.0,0.002]
[1738911097773,0.2280441,96869.0,96865.0,0.002]
[1738911098071,0.02165,96869.0,96865.0,0.2083992]
[1738911098482,0.02265,96869.0,96865.0,0.2063992]
[1738911098979,0.02165,96869.0,96865.0,0.2063992]
[1738911099174,0.02165,96869.0,96865.0,0.2083992]
[1738911099370,0.02465,96869.0,96865.0,0.2083992]
[1738911099582,0.02465,96869.0,96865.0,0.2063992]
[1738911099775,0.02465,96869.0,96865.0,0.2073992]
[1738911100180,0.02465,96869.0,96865.0,0.21680329]
[1738911100480,0.02165,96869.0,96866.0,0.01592112]
[1738911100673,0.02165,96869.0,96865.0,0.21680329]
[1738911100873,0.02165,96869.0,96866.0,0.01592232]
[1738911101066,0.02165,96869.0,96865.0,0.21580329]
[1738911101272,0.02165,96869.0,96866.0,0.015951]
[1738911101466,0.02165,96869.0,96867.0,0.01596294]
[1738911101672,0.02165,96869.0,96868.0,0.01596294]
[1738911102481,0.02265,96869.0,96868.0,0.22235714]
[1738911102881,0.02165,96869.0,96868.0,0.22235714]
[1738911103182,0.02265,96869.0,96868.0,0.22235714]
[1738911103380,0.02165,96869.0,96868.0,0.22235714]
[1738911103579,0.02165,96869.0,96868.0,0.01596294]
[1738911103580,0.02465,96869.0,96868.0,0.01596294]
[1738911104272,0.02165,96869.0,96868.0,0.01596294]
[1738911104874,0.2280435,96869.0,96865.0,0.00940409]
[1738911105074,0.2063952,96868.0,96866.0,0.24745748]
[1738911105877,0.2270452,96868.0,96866.0,0.24745748]
[1738911106477,0.2300452,96868.0,96866.0,0.24745748]
[1738911107376,0.2310452,96868.0,96866.0,0.24745748]
[1738911108573,0.2310452,96868.0,96864.0,0.00935916]
[1738911108783,0.2310452,96868.0,96863.0,0.2569247]
[1738911110388,0.2310452,96868.0,96863.0,0.26634849]
[1738911110682,0.2290452,96868.0,96863.0,0.26634849]
[1738911110897,0.2064123,96860.0,96858.0,0.24900599]
[1738911111587,0.2064123,96860.0,96858.0,0.00154851]
[1738911111887,0.2270623,96860.0,96858.0,0.00154851]
[1738911112190,0.02065,96860.0,96858.0,0.00354851]
[1738911112579,0.2064133,96859.0,96858.0,0.00354851]
[1738911112788,0.2270633,96859.0,96858.0,0.00354851]
[1738911113585,0.2270633,96859.0,96858.0,0.00154851]
[1738911113889,0.2270633,96859.0,96858.0,0.00354851]
[1738911114079,0.2310633,96859.0,96858.0,0.00354851]
[1738911114480,0.2310633,96859.0,96858.0,0.00154851]
[1738911114481,0.2320633,96859.0,96858.0,0.00154851]
[1738911114885,0.2310633,96859.0,96858.0,0.00154851]
[1738911115080,0.2330633,96859.0,96858.0,0.00154851]
[1738911115482,0.2290633,96859.0,96858.0,0.00154851]
[1738911115791,0.2340633,96859.0,96858.0,0.00154851]
[1738911119193,0.2290633,96859.0,96858.0,0.00154851]
[1738911119488,0.2340633,96859.0,96858.0,0.00154851]
[1738911119996,0.2290633,96859.0,96858.0,0.00154851]
[1738911120184,0.2340633,96859.0,96858.0,0.00154851]
[1738911120381,0.2320633,96859.0,96858.0,0.00154851]
[1738911120581,0.2340633,96859.0,96858.0,0.00154851]
[1738911124899,0.2064496,96842.0,96825.0,0.5672845]
[1738911125102,0.2064496,96842.0,96836.0,0.30839045]
[1738911125103,0.2064602,96837.0,96836.0,0.30839045]
[1738911125698,0.2271102,96837.0,96836.0,0.30839045]
[1738911126898,0.2281102,96837.0,96836.0,0.31439045]
[1738911127896,0.5889102,96837.0,96836.0,0.31439045]
[1738911128301,0.5899102,96837.0,96836.0,0.31939045]
[1738911128594,0.5919102,96837.0,96836.0,0.31339045]
[1738911128999,0.38445,96837.0,96829.0,0.24712051]
[1738911129195,0.5989102,96837.0,96836.0,0.001]
[1738911129391,0.9597102,96837.0,96836.0,0.001]
[1738911129786,0.2064752,96830.0,96829.0,0.24712051]
[1738911130499,0.2271252,96830.0,96829.0,0.24712051]
[1738911131394,0.2321252,96830.0,96829.0,0.24712051]
[1738911131798,0.2271252,96830.0,96829.0,0.24712051]
[1738911131998,0.2321252,96830.0,96829.0,0.24712051]
[1738911132389,0.2411252,96830.0,96829.0,0.24812051]
[1738911132592,0.2411252,96830.0,96829.0,0.001]
[1738911132794,0.03465,96830.0,96829.0,0.001]
[1738911134097,0.02965,96830.0,96829.0,0.001]
[1738911134298,0.03465,96830.0,96829.0,0.001]
[1738911134901,0.02865,96830.0,96828.0,0.2064779]
[1738911135203,0.3608,96829.0,96828.0,0.2064779]
[1738911135594,0.38145,96829.0,96828.0,0.2064779]
[1738911135795,0.38145,96829.0,96820.0,0.14771281]
[1738911135995,0.38145,96829.0,96820.0,0.35420801]
[1738911136203,0.5879289,96829.0,96820.0,0.21587235]
[1738911136406,0.5949289,96829.0,96820.0,0.21587235]
[1738911136607,0.5949289,96829.0,96821.0,0.2064932]
[1738911136909,0.5949289,96829.0,96823.0,0.206489]
[1738911137399,0.5949289,96829.0,96825.0,0.2064843]
[1738911138007,0.38145,96829.0,96826.0,0.2064827]
[1738911138304,0.02565,96829.0,96826.0,0.2064827]
[1738911138606,0.02965,96829.0,96826.0,0.2064827]
[1738911139205,0.02865,96829.0,96826.0,0.2064827]
[1738911139705,0.02865,96829.0,96828.0,0.2064794]
[1738911140992,0.02065,96829.0,96828.0,0.22261935]
[1738911141193,0.02965,96829.0,96828.0,0.22261925]
[1738911141702,0.2221,96836.0,96828.0,0.22261925]
[1738911141703,0.2221,96836.0,96828.0,0.01613985]
[1738911142010,0.2221,96836.0,96835.0,0.2064645]
[1738911142204,0.24276,96836.0,96835.0,0.22260435]
[1738911142806,0.3608,96854.0,96845.0,0.2064432]
[1738911143011,0.51518407,96864.0,96845.0,0.27310305]
[1738911143012,0.51394406,96864.0,96845.0,0.27310305]
[1738911143307,0.51394406,96864.0,96855.0,0.1857697]
[1738911143499,0.51394406,96864.0,96856.0,0.1052351]
[1738911143801,0.53459406,96864.0,96856.0,0.0891]
[1738911144593,0.53659406,96864.0,96856.0,0.0891]
[1738911145097,0.54259406,96864.0,96856.0,0.0901]
[1738911145509,0.18179406,96864.0,96863.0,0.2064048]
[1738911145708,0.18179406,96864.0,96863.0,0.5672048]
[1738911145914,0.00015488,96870.0,96863.0,0.3608]
[1738911146208,0.15297326,96889.0,96864.0,0.05048]
[1738911146406,0.15297326,96889.0,96877.0,0.206375]
[1738911146609,0.38145,96886.0,96878.0,0.0836]
[1738911146904,0.38145,96886.0,96879.0,0.2063689]
[1738911147705,0.38145,96886.0,96873.0,0.00015488]
[1738911147706,0.2063629,96883.0,96873.0,0.00015488]
[1738911147913,0.2063629,96883.0,96874.0,0.01613069]
[1738911148210,0.2270129,96883.0,96875.0,0.01613069]
[1738911148409,0.02065,96883.0,96873.0,0.00015488]
[1738911148704,0.02065,96883.0,96880.0,0.206367]
[1738911148905,0.02165,96883.0,96880.0,0.206367]
[1738911151004,0.02065,96883.0,96881.0,0.2063649]
[1738911151205,0.02365,96883.0,96882.0,0.05048]
[1738911152013,0.02665,96883.0,96882.0,0.05048]
[1738911152621,0.02265,96883.0,96882.0,0.05048]
[1738911152821,0.02765,96883.0,96882.0,0.05048]
[1738911153319,0.02865,96883.0,96882.0,0.05048]
[1738911157230,0.02865,96883.0,96882.0,0.41128]
[1738911164836,0.02865,96883.0,96882.0,0.41124]
[1738911165536,0.3608,96915.0,96882.0,0.43124]
[1738911165728,0.3608,96915.0,96908.0,0.2063086]
[1738911165928,0.38144,96915.0,96908.0,0.2063086]
[1738911166929,0.02464,96915.0,96908.0,0.2063086]
[1738911167231,0.02464,96915.0,96909.0,0.05044]
[1738911167436,0.02064,96915.0,96909.0,0.05044]
[1738911167638,0.02464,96915.0,96909.0,0.05044]
[1738911168436,0.03164,96915.0,96909.0,0.05144]
[1738911169027,0.2062963,96914.0,96909.0,0.05144]
[1738911169737,0.2269363,96914.0,96909.0,0.05144]
[1738911170740,0.2279363,96914.0,96909.0,0.06104709]
[1738911171542,0.2349363,96914.0,96909.0,0.06104709]
[1738911171745,0.2063042,96911.0,96909.0,0.05144]
[1738911172431,0.2269442,96911.0,96909.0,0.05144]
[1738911173140,0.2309442,96911.0,96909.0,0.05144]
[1738911174042,0.2379442,96911.0,96909.0,0.05144]
[1738911175338,0.2379442,96911.0,96910.0,0.05044]
[1738911175933,0.5987442,96911.0,96909.0,0.001]
[1738911176132,0.8208442,96911.0,96909.0,0.001]
[1738911176334,0.2063197,96903.0,96890.0,0.24712051]
[1738911176643,0.2063451,96892.0,96890.0,0.24712051]
[1738911176838,0.1694,96891.0,96890.0,0.24712051]
[1738911177636,0.19004,96891.0,96890.0,0.24712051]
[1738911178640,0.19004,96891.0,96890.0,0.24912051]
[1738911179145,0.19004,96891.0,96890.0,0.005]
[1738911179851,0.27974,96891.0,96890.0,0.005]
[1738911180346,0.2063644,96882.0,96881.0,0.00015478]
[1738911180644,0.5671644,96882.0,96881.0,0.00015478]
[1738911181048,0.2063857,96872.0,96871.0,0.24712051]
[1738911181345,0.5671857,96872.0,96871.0,0.24712051]
[1738911181648,0.5878257,96872.0,96871.0,0.24712051]
[1738911181942,0.5878257,96872.0,96871.0,0.10002836]
[1738911182344,0.5878257,96872.0,96871.0,0.001]
[1738911182345,0.5948257,96872.0,96871.0,0.001]
[1738911182942,0.5998257,96872.0,96871.0,0.001]
[1738911184444,0.38644,96872.0,96862.0,0.00015478]
[1738911184645,0.2063949,96868.0,96862.0,0.00015478]
[1738911185044,0.2270349,96868.0,96862.0,0.00015478]
[1738911186047,0.2290349,96868.0,96862.0,0.00015478]
[1738911187347,0.2320349,96868.0,96864.0,0.2064009]
[1738911188453,0.2310349,96868.0,96864.0,0.2064009]
[1738911188650,0.2330349,96868.0,96864.0,0.2064009]
[1738911189353,0.02664,96868.0,96862.0,0.00015478]
[1738911189557,0.02664,96868.0,96866.0,0.2063967]
[1738911189861,0.02664,96868.0,96867.0,0.1755]
[1738911190246,0.02264,96868.0,96867.0,0.1755]
[1738911190442,0.02664,96868.0,96867.0,0.1755]
[1738911191062,0.02264,96868.0,96867.0,0.1755]
[1738911191355,0.02264,96868.0,96867.0,0.1765]
[1738911191768,0.02264,96868.0,96867.0,0.1755]
[1738911191947,0.02264,96868.0,96867.0,0.1765]
[1738911192148,0.02064,96868.0,96867.0,0.1765]
[1738911192955,0.02064,96868.0,96867.0,0.1785]
[1738911193160,0.00015478,96877.0,96875.0,0.2063791]
[1738911193366,0.00015478,96877.0,96876.0,0.3608]
[1738911193564,0.02080478,96877.0,96876.0,0.3608]
[1738911194346,0.02380478,96877.0,96876.0,0.3608]
[1738911194552,0.02380478,96877.0,96876.0,0.57679851]
[1738911195152,0.02480478,96877.0,96876.0,0.57679851]
[1738911195658,0.02380478,96877.0,96876.0,0.57679851]
[1738911195850,0.02480478,96877.0,96876.0,0.57679851]
[1738911196363,0.02380478,96877.0,96876.0,0.57679851]
[1738911197361,0.02180478,96877.0,96876.0,0.57679851]
[1738911197860,0.3103,96911.0,96876.0,0.37042131]
[1738911198164,0.3103,96911.0,96894.0,0.3608]
[1738911198349,0.3103,96911.0,96895.0,0.05044]
[1738911198549,0.33094,96911.0,96895.0,0.05044]
[1738911198956,0.2063057,96910.0,96895.0,0.05044]
[1738911199260,0.33094,96911.0,96895.0,0.05044]
[1738911199449,0.24874,96911.0,96895.0,0.2567756]
[1738911200058,0.24974,96911.0,96895.0,0.05144]
[1738911200258,0.009,96910.0,96895.0,0.05244]
[1738911200464,0.3608,96904.0,96896.0,0.05072]
[1738911200960,0.3608,96904.0,96895.0,0.001]
[1738911201262,0.2063267,96900.0,96896.0,0.05072]
[1738911201664,0.2269667,96900.0,96896.0,0.05072]
[1738911201962,0.2063308,96898.0,96896.0,0.05072]
[1738911202162,0.2063308,96898.0,96896.0,0.001]
[1738911202363,0.2269708,96898.0,96896.0,0.001]
[1738911202662,0.02064,96898.0,96895.0,0.001]
[1738911202863,0.2063346,96896.0,96893.0,0.00015478]
[1738911203363,0.2269746,96896.0,96893.0,0.00015478]
[1738911203766,0.2063389,96894.0,96893.0,0.00015478]
[1738911204064,0.5671389,96894.0,96893.0,0.00015478]
[1738911204562,0.5877789,96894.0,96893.0,0.00015478]
[1738911205651,0.5917789,96894.0,96893.0,0.00015478]
[1738911206163,0.5997789,96894.0,96893.0,0.00115478]
[1738911212066,0.2389789,96894.0,96893.0,0.00115478]
[1738911212772,0.03364,96894.0,96893.0,0.00115478]
[1738911213974,0.03164,96894.0,96893.0,0.00115478]
[1738911214478,0.02364,96894.0,96893.0,0.00015478]
[1738911214664,0.02864,96894.0,96893.0,0.00015478]
[1738911216573,0.02564,96894.0,96893.0,0.00015478]
[1738911217171,0.02564,96894.0,96893.0,0.08285478]
[1738911217565,0.02264,96894.0,96893.0,0.08285478]
[1738911219173,0.02064,96894.0,96893.0,0.08285478]
[1738911219475,0.02164,96894.0,96893.0,0.08285478]
[1738911219973,0.02064,96894.0,96893.0,0.08285478]
[1738911220178,0.02164,96894.0,96893.0,0.08285478]
[1738911223077,0.00154847,96914.0,96893.0,0.08285478]
[1738911223275,0.00154847,96914.0,96905.0,0.206314]
[1738911223475,0.38144,96912.0,96906.0,0.05044]
[1738911223673,0.38144,96912.0,96906.0,0.03395]
[1738911223975,0.3608,96912.0,96906.0,0.03188]
[1738911224175,0.38244,96912.0,96906.0,0.2381915]
[1738911224378,0.38244,96912.0,96907.0,0.2063099]
[1738911224681,0.38244,96912.0,96908.0,0.2063077]
[1738911224980,0.38644,96912.0,96910.0,0.2063029]
[1738911225766,0.39344,96912.0,96910.0,0.2063029]
[1738911225976,0.03264,96912.0,96910.0,0.2063029]
[1738911226482,0.03264,96912.0,96910.0,0.2073029]
[1738911226483,0.03364,96912.0,96910.0,0.2073029]
[1738911227685,0.03364,96912.0,96910.0,0.001]
[1738911228384,0.03064,96912.0,96910.0,0.001]
[1738911228578,0.03064,96912.0,96910.0,0.18631377]
[1738911228884,0.02364,96912.0,96910.0,0.18531377]
[1738911229069,0.02564,96912.0,96910.0,0.18531377]
[1738911230975,0.02564,96912.0,96910.0,0.39161677]
[1738911231784,0.02564,96912.0,96910.0,0.206303]
[1738911231985,0.02564,96912.0,96911.0,0.0849]
[1738911233080,0.02364,96912.0,96911.0,0.0849]
[1738911233386,0.02164,96912.0,96911.0,0.0849]